bitfinex/quotes_ETHUSD_20250705
["timestamp","ask_amount","ask_price","bid_price","bid_amount"]
[1751725881911,13.96811834,2517.6,2517.5,1e-08]
[1751725882088,17.18052215,2517.6,2517.5,1e-08]
[1751725883300,3.97266804,2517.2,2516.9,0.8304]
[1751725883528,31.22834952,2517.2,2516.6,0.064445]
[1751725883734,31.18869986,2517.2,2516.7,0.7607]
[1751725884591,27.21603182,2517.2,2516.7,0.7607]
[1751725884791,32.5792714,2517.2,2516.7,0.7607]
[1751725885426,24.29209405,2517.2,2516.7,0.7607]
[1751725885725,33.1292714,2517.2,2516.7,0.7607]
[1751725887825,33.1292714,2517.2,2516.6,0.064445]
[1751725888341,35.0732714,2517.2,2516.6,0.064445]
[1751725889845,25.68609405,2517.2,2516.9,0.7607]
[1751725890855,0.37085447,2517.2,2516.9,0.7607]
[1751725891086,0.37085447,2517.2,2517.1,0.825145]
[1751725891238,0.37085447,2517.2,2517.1,4.79797087]
[1751725891546,0.37085447,2517.2,2517.1,4.83769912]
[1751725891910,0.37085447,2517.2,2517.1,0.825145]
[1751725892135,4.34352251,2517.2,2517.1,0.825145]
[1751725892447,4.38317217,2517.2,2517.1,0.825145]
[1751725896344,10.32785447,2517.2,2517.1,0.825145]
[1751725896920,10.53508019,2517.2,2517.1,0.825145]
[1751725897846,0.57808019,2517.2,2517.1,0.825145]
[1751725898024,0.77648019,2517.2,2517.1,0.825145]
[1751725898427,0.77648019,2517.2,2517.1,4.79797087]
[1751725898628,0.57808019,2517.2,2517.1,5.67508035]
[1751725900617,0.57908019,2517.2,2517.1,5.67508035]
[1751725903538,0.57908019,2517.2,2517.1,5.7148086]
[1751725903869,0.20822572,2517.2,2517.1,5.67508035]
[1751725904362,0.20822572,2517.2,2517.1,5.7148086]
[1751725904566,0.20822572,2517.2,2517.1,5.67508035]
[1751725907085,0.5791335,2517.2,2517.1,5.67508035]
[1751725907452,0.37190778,2517.2,2517.1,5.67508035]
[1751725907651,0.37190778,2517.2,2517.1,5.87348035]
[1751725910793,0.37190778,2517.2,2517.1,6.42348035]
[1751725910996,0.001,2517.2,2517.1,14.43348035]
[1751725914274,0.37060402,2517.5,2517.4,4.52235242]
[1751725914587,0.20715779,2517.8,2517.7,4.77597909]
[1751725914785,0.57779224,2517.8,2517.7,4.81569788]
[1751725916987,0.37063445,2517.8,2517.7,4.81569788]
[1751725917188,0.37063445,2517.8,2517.7,4.77597909]
[1751725917389,0.37063445,2517.8,2517.7,5.71033667]
[1751725917629,0.20711852,2518.2,2518.1,4.77534816]
[1751725917777,0.57760963,2518.2,2518.1,4.77534816]
[1751725918506,0.57760963,2518.2,2518.1,0.8041]
[1751725919218,0.57760963,2518.2,2518.1,4.77534816]
[1751725920107,0.57760963,2518.2,2518.1,0.8041]
[1751725923883,0.57760963,2518.2,2518.1,4.77534816]
[1751725924925,0.57760963,2518.2,2518.1,0.8041]
[1751725926833,0.57775306,2518.2,2518.1,0.8041]
[1751725929633,0.20711852,2518.2,2518.1,0.8041]
[1751725930035,0.57787301,2518.2,2518.1,0.8041]
[1751725930832,0.57788459,2518.2,2518.1,0.8041]
[1751725931130,0.57788459,2518.2,2518.1,4.77534816]
[1751725931343,0.57788459,2518.2,2518.1,5.65400414]
[1751725932212,0.57788459,2518.2,2518.1,4.77534816]
[1751725933319,0.57788459,2518.2,2518.1,4.81506064]
[1751725933815,0.57788459,2518.2,2518.1,5.01346064]
[1751725934216,0.20711852,2518.2,2518.1,5.01346064]
[1751725934436,0.57896789,2518.2,2518.1,5.01346064]
[1751725934636,0.57896789,2518.2,2518.1,5.87223178]
[1751725934839,0.37184937,2518.2,2518.1,5.87223178]
[1751725935346,0.37185075,2518.2,2518.1,5.87223178]
[1751725935934,0.37185051,2518.2,2518.1,5.87223178]
[1751725936253,0.001,2518.2,2518.1,5.87223178]
[1751725936459,0.3718711,2518.2,2518.1,13.87623178]
[1751725942558,0.37222263,2518.2,2518.1,13.87623178]
[1751725948572,0.37222263,2518.2,2518.1,14.42623178]
[1751725950561,0.37222263,2518.2,2518.1,24.42623178]
[1751725950741,0.001,2518.2,2518.1,24.42623178]
[1751725951674,0.001,2518.2,2518.1,33.26340913]
[1751725953574,0.37143227,2518.6,2518.5,3.97061743]
[1751725953875,0.37143227,2518.6,2518.5,14.17625996]
[1751725954039,0.37143227,2518.6,2518.5,14.33495379]
[1751725954354,0.022254,2518.9,2518.8,5.33894451]
[1751725954537,0.022254,2518.9,2518.8,13.58004595]
[1751725954740,0.022254,2518.9,2518.8,13.54034451]
[1751725954977,0.022254,2518.9,2518.8,16.57217013]
[1751725956586,0.022254,2518.9,2518.8,26.57217013]
[1751725958497,0.022254,2518.9,2518.8,26.57117013]
[1751725966709,0.022254,2518.9,2518.8,26.56917013]
[1751725968012,0.023254,2518.9,2518.8,26.56917013]
[1751725970417,0.023254,2518.9,2518.8,18.56917013]
[1751725970621,0.023254,2518.9,2518.8,0.1984]
[1751725970799,0.6096,2518.8,2518.6,3.97035414]
[1751725971134,0.6096,2518.8,2518.7,8.0]
[1751725971330,0.6096,2518.8,2518.6,3.97035414]
[1751725971509,0.6096,2518.8,2518.7,8.0]
[1751725971698,0.6096,2518.8,2518.7,11.97030213]
[1751725971899,0.6096,2518.8,2518.7,8.0]
[1751725972235,0.6096,2518.8,2518.7,11.97030213]
[1751725972998,0.6096,2518.8,2518.7,8.0]
[1751725978199,0.98087912,2518.8,2518.7,8.0]
[1751725978399,0.98087912,2518.8,2518.7,11.97030213]
[1751725982944,0.98116208,2518.8,2518.7,11.97030213]
[1751725983817,0.37156208,2518.8,2518.7,11.97030213]
[1751725988941,0.23032044,2518.9,2518.8,3.97014451]
[1751725989147,0.60192365,2518.9,2518.8,3.97014451]
[1751725994328,0.60210436,2518.9,2518.8,3.97014451]
[1751725996079,0.60210436,2518.9,2518.8,4.00984595]
[1751725996239,0.60210436,2518.9,2518.8,5.60785965]
[1751725997361,0.60210436,2518.9,2518.8,4.00984595]
[1751726001377,0.60210436,2518.9,2518.8,3.97014451]
[1751726002376,0.60210436,2518.9,2518.8,4.00984595]
[1751726003377,0.60210436,2518.9,2518.8,3.97014451]
[1751726003579,0.60272863,2518.9,2518.8,11.97014451]
[1751726006774,0.39566219,2518.9,2518.8,11.97014451]
[1751726006936,0.39566219,2518.9,2518.8,13.58402807]
[1751726009285,0.39566219,2518.9,2518.8,14.41492807]
[1751726012360,0.39566219,2518.9,2518.8,24.96492807]
[1751726012692,0.1994,2519.2,2519.1,4.8005717]
[1751726012693,0.001,2519.2,2519.1,4.8005717]
[1751726012880,0.001,2519.2,2519.1,12.83926841]
[1751726013079,0.001,2519.2,2519.1,15.52004684]
[1751726017496,1e-08,2519.2,2519.1,26.07004684]
[1751726022500,1e-08,2519.2,2519.1,26.26844684]
[1751726027136,1e-08,2519.2,2519.1,18.26944684]
[1751726027432,1e-08,2519.2,2519.1,25.43554684]
[1751726028398,1e-08,2519.2,2519.1,26.21554684]
[1751726028941,1e-08,2519.2,2519.1,7.76426538]
[1751726029145,1e-08,2519.2,2519.1,11.73393708]
[1751726029508,1e-08,2519.4,2519.3,4.74935656]
[1751726029842,1e-08,2519.4,2519.3,12.79005012]
[1751726030057,1e-08,2519.4,2519.3,12.94875656]
[1751726030206,1e-08,2519.4,2519.3,13.84724018]
[1751726030704,1e-08,2519.4,2519.3,14.39724018]
[1751726034344,1e-08,2519.4,2519.3,23.22978362]
[1751726035221,0.01,2519.8,2519.7,3.96872643]
[1751726035424,0.01,2519.8,2519.7,12.00741369]
[1751726035625,0.01,2519.8,2519.7,12.16612643]
[1751726039239,0.01,2519.8,2519.7,13.78000999]
[1751726040854,0.01,2519.8,2519.7,14.33000999]
[1751726041540,1e-08,2519.8,2519.7,14.33000999]
[1751726042049,1e-08,2519.8,2519.7,15.09160999]
[1751726042955,0.0433932,2519.9,2519.7,15.09160999]
[1751726042956,1e-08,2519.9,2519.8,4.51856893]
[1751726043142,1e-08,2519.9,2519.8,6.67017315]
[1751726044850,1e-08,2519.9,2519.8,6.63048747]
[1751726045038,1e-08,2519.9,2519.8,6.67017315]
[1751726045249,0.001,2520.1,2520.0,5.28445396]
[1751726045250,1e-08,2520.1,2520.0,5.28445396]
[1751726045424,1e-08,2520.1,2520.0,13.28045396]
[1751726045619,1e-08,2520.1,2520.0,14.37733758]
[1751726050066,1e-08,2520.1,2520.0,13.61113758]
[1751726050271,1e-08,2520.1,2520.0,12.16565396]
[1751726050434,1e-08,2520.1,2520.0,4.16665396]
[1751726050633,1e-08,2520.1,2520.0,12.16565396]
[1751726055870,1e-08,2520.1,2520.0,4.16665396]
[1751726056046,1e-08,2520.1,2520.0,12.16365396]
[1751726056243,1e-08,2520.1,2520.0,4.16665396]
[1751726056439,0.60960001,2520.1,2520.0,4.16665396]
[1751726056838,0.60960001,2520.1,2520.0,7.997]
[1751726057149,0.60960001,2520.1,2519.6,3.9707942]
[1751726057150,0.6096,2520.0,2519.6,3.9707942]
[1751726057361,0.808,2519.8,2519.7,7.999]
[1751726057534,0.808,2519.8,2519.6,0.002]
[1751726057734,0.808,2519.8,2519.6,8.002]
[1751726057941,0.808,2519.8,2519.6,3.9708471]
[1751726058135,0.808,2519.8,2519.7,3.96872643]
[1751726058336,1.04423676,2519.8,2519.7,3.96872643]
[1751726059250,1.41530842,2519.8,2519.7,3.96872643]
[1751726060767,1.04423676,2519.8,2519.7,3.96872643]
[1751726060972,1.41529737,2519.8,2519.7,3.96872643]
[1751726061276,1.04423676,2519.8,2519.7,3.96872643]
[1751726061976,1.41526792,2519.8,2519.7,3.96872643]
[1751726064278,1.17903116,2519.8,2519.7,3.96872643]
[1751726064476,1.51471797,2519.9,2519.7,3.96872643]
[1751726064477,0.6096,2520.0,2519.9,3.96832234]
[1751726064668,0.9805423,2520.0,2519.9,3.96832234]
[1751726065368,0.6096,2519.9,2519.6,8.003]
[1751726065563,0.6096,2519.7,2519.6,11.97188394]
[1751726065770,0.6096,2519.7,2519.6,8.003]
[1751726066479,0.6096,2519.7,2519.6,11.97188394]
[1751726067678,0.6096,2519.7,2519.6,3.97088394]
[1751726070082,0.808,2519.9,2519.8,3.96856893]
[1751726070278,1.17879951,2519.9,2519.8,3.96856893]
[1751726070468,0.60960001,2520.1,2520.0,3.96825396]
[1751726070859,0.98037928,2520.1,2520.0,3.96825396]
[1751726072379,1.18734761,2520.1,2520.0,3.96825396]
[1751726072786,1.18734761,2520.1,2519.6,0.002]
[1751726072960,0.41042893,2520.0,2519.6,8.005]
[1751726073155,0.1984,2519.8,2519.7,3.96872643]
[1751726073356,0.1984,2519.8,2519.7,11.97272643]
[1751726074191,0.1984,2519.8,2519.7,8.004]
[1751726074357,0.1984,2519.8,2519.7,11.97272643]
[1751726075186,0.808,2519.8,2519.7,11.97272643]
[1751726075893,0.808,2519.8,2519.6,0.002]
[1751726076051,1.45158945,2519.7,2519.6,8.005]
[1751726076591,0.37078945,2519.7,2519.6,11.97388394]
[1751726077091,0.3708191,2519.7,2519.6,11.97388394]
[1751726079418,0.3708191,2519.7,2519.6,0.002]
[1751726079561,0.9804191,2519.7,2519.6,0.002]
[1751726079898,23.78168897,2519.7,2519.6,0.002]
[1751726080065,26.75488021,2519.7,2519.6,0.002]
[1751726082899,26.75506868,2519.7,2519.6,0.002]
[1751726088601,26.75536665,2519.7,2519.6,0.002]
[1751726092470,26.96240621,2519.7,2519.6,0.002]
[1751726097822,26.96234072,2519.7,2519.6,0.002]
[1751726109851,36.91034072,2519.7,2519.6,0.002]
[1751726111220,28.90734072,2519.7,2519.6,0.002]
[1751726111426,24.49583044,2519.7,2519.6,0.002]
[1751726113545,14.54783044,2519.7,2519.6,0.002]
[1751726113743,22.55183044,2519.7,2519.6,0.002]
[1751726116642,10.57910401,2519.7,2519.6,0.002]
[1751726118481,14.54783044,2519.7,2519.6,0.002]
[1751726122681,10.57910401,2519.7,2519.6,0.002]
[1751726124494,14.54783044,2519.7,2519.6,0.002]
[1751726125997,10.57910401,2519.7,2519.6,0.002]
[1751726126403,10.57904371,2519.7,2519.6,0.002]
[1751726127106,0.77744371,2519.7,2519.6,0.002]
[1751726132203,0.77722097,2519.7,2519.6,0.002]
[1751726144032,0.77749941,2519.7,2519.6,0.002]
[1751726147612,0.57909941,2519.7,2519.6,5.62848337]
[1751726148515,0.57900893,2519.7,2519.6,5.62848337]
[1751726148916,0.57900893,2519.7,2519.6,5.6681722]
[1751726149117,0.57900893,2519.7,2519.6,5.62848337]
[1751726149990,0.57900893,2519.7,2519.6,5.6681722]
[1751726152720,0.57900893,2519.7,2519.6,5.62848337]
[1751726152890,0.57900893,2519.7,2519.6,5.6681722]
[1751726153092,0.57900893,2519.7,2519.6,5.8665722]
[1751726153486,0.19840001,2520.1,2520.0,3.96825396]
[1751726153822,0.57014256,2520.1,2520.0,5.58841769]
[1751726158022,0.37174256,2520.1,2520.0,5.62810022]
[1751726158193,0.37174256,2520.1,2520.0,5.78681769]
[1751726158825,0.3712784,2520.1,2520.0,5.78681769]
[1751726161022,0.3712784,2520.1,2520.0,13.78381769]
[1751726161429,1e-08,2520.1,2520.0,13.78381769]
[1751726176218,0.37150993,2520.1,2520.0,13.78381769]
[1751726177137,0.37150993,2520.1,2519.7,0.8053]
[1751726179039,0.37150992,2520.0,2519.9,3.96830526]
[1751726180735,0.37190389,2520.0,2519.9,3.96830526]
[1751726181595,0.19840001,2520.1,2519.9,3.96830526]
[1751726181725,0.37198365,2520.0,2519.9,3.96830526]
[1751726182224,0.37198365,2520.0,2519.9,5.68180648]
[1751726182436,0.37198365,2520.0,2519.9,5.84052237]
[1751726182726,0.37198365,2520.0,2519.9,4.16670526]
[1751726182935,0.37198365,2520.0,2519.9,0.1984]
[1751726183135,0.37198365,2520.0,2519.9,7.996]
[1751726183663,0.37198365,2520.0,2519.9,11.96441144]
[1751726184340,0.37198365,2520.0,2519.8,3.96851007]
[1751726184538,0.37198365,2519.9,2519.8,11.96451007]
[1751726184757,0.37198365,2519.9,2519.7,3.96869496]
[1751726184964,0.19840001,2520.1,2519.6,0.2004]
[1751726184965,0.37198365,2519.8,2519.6,4.1691818]
[1751726185171,0.6096,2519.9,2519.7,11.96472643]
[1751726185365,0.37206951,2519.8,2519.7,11.96472643]
[1751726190475,0.84764967,2520.1,2519.8,3.9685262]
[1751726190778,1.4565059,2520.0,2519.9,7.996]
[1751726192870,1.66347646,2520.0,2519.8,11.9645262]
[1751726193075,0.37174093,2519.9,2519.8,11.9645262]
[1751726194479,0.37174093,2519.9,2519.8,12.7233262]
[1751726194665,0.37174093,2519.9,2519.8,12.9217262]
[1751726194975,1e-08,2520.1,2520.0,3.96825396]
[1751726195139,1e-08,2520.1,2520.0,12.92145396]
[1751726196158,1e-08,2520.1,2520.0,13.47145396]
[1751726196575,1e-08,2520.1,2520.0,12.92145396]
[1751726197159,1e-08,2520.1,2520.0,0.9572]
[1751726197482,1e-08,2520.1,2520.0,11.96425396]
[1751726198079,1e-08,2520.1,2520.0,7.996]
[1751726198797,1e-08,2520.1,2520.0,11.96425396]
[1751726200872,1e-08,2520.1,2520.0,12.97125396]
[1751726201071,1e-08,2520.1,2520.0,15.11452043]
[1751726201659,1e-08,2520.1,2520.0,15.11134531]
[1751726202385,1e-08,2520.1,2520.0,14.56134531]
[1751726218987,1e-08,2520.1,2520.0,15.11134531]
[1751726227414,1e-08,2520.1,2520.0,12.15747884]
[1751726230704,1e-08,2520.1,2520.0,12.93317884]
[1751726243654,1e-08,2520.1,2520.0,12.15747884]
[1751726246553,1e-08,2520.1,2520.0,13.48977884]
[1751726246922,1e-08,2520.1,2520.0,22.32232228]
[1751726247256,0.0433932,2520.4,2520.3,5.30008161]
[1751726247463,0.0433932,2520.4,2520.3,13.29408161]
[1751726250662,0.0433932,2520.4,2520.3,12.74408161]
[1751726253342,0.0433932,2520.4,2520.3,11.96178161]
[1751726253666,0.0433932,2520.4,2520.3,11.96078161]
[1751726254258,0.0433932,2520.4,2520.3,13.19439403]
[1751726257163,0.0433932,2520.4,2520.3,13.39199403]
[1751726278772,0.6196,2520.8,2520.3,13.39199403]
[1751726278773,1e-08,2520.8,2520.7,5.27895198]
[1751726278984,1e-08,2520.9,2520.8,4.5169946]
[1751726279293,1e-08,2520.9,2520.8,5.2787946]
[1751726279491,1e-08,2520.9,2520.8,7.9078679]
[1751726279901,1e-08,2520.9,2520.8,16.72543414]
[1751726280783,1e-08,2520.9,2520.8,17.8398679]
[1751726286802,0.0443932,2521.4,2520.8,17.8398679]
[1751726286803,0.0443932,2521.4,2521.1,3.96652254]
[1751726287006,0.0443932,2521.4,2521.1,11.99618776]
[1751726287170,0.0443932,2521.4,2521.1,12.75672254]
[1751726287511,0.0443932,2521.4,2521.1,6.55033496]
[1751726287512,1e-08,2521.2,2521.1,6.55033496]
[1751726287713,1e-08,2521.2,2521.1,16.51900018]
[1751726288004,1e-08,2521.2,2521.1,16.47933496]
[1751726288707,1e-08,2521.4,2521.3,4.5162079]
[1751726288907,1e-08,2521.4,2521.3,13.34606997]
[1751726289207,1e-08,2521.4,2521.3,16.1330812]
[1751726290506,0.002,2521.7,2521.3,16.1330812]
[1751726290507,1e-08,2521.5,2521.4,4.5160506]
[1751726290707,1e-08,2521.5,2521.4,4.5557111]
[1751726291412,0.01,2521.8,2521.7,5.31577877]
[1751726291732,0.0433932,2521.9,2521.8,3.96542152]
[1751726291917,0.6096,2522.5,2522.3,3.96463545]
[1751726292079,8.86095944,2523.4,2522.3,12.7438818]
[1751726292080,1e-08,2522.4,2522.3,12.7438818]
[1751726292411,1e-08,2522.4,2522.3,15.44343545]
[1751726292976,0.0433932,2522.9,2522.3,15.44343545]
[1751726292977,1e-08,2522.7,2522.6,4.51416395]
[1751726293176,1e-08,2522.7,2522.6,12.71176395]
[1751726293414,1e-08,2522.7,2522.6,14.38333501]
[1751726295524,1e-08,2522.7,2522.6,4.16176395]
[1751726295824,1e-08,2522.7,2522.6,14.13740558]
[1751726295987,1e-08,2522.7,2522.6,14.09776395]
[1751726297509,1e-08,2522.7,2522.6,14.64776395]
[1751726297715,1e-08,2522.9,2522.8,3.96384969]
[1751726297887,1e-08,2522.9,2522.8,23.3501643]
[1751726298091,1e-08,2522.9,2522.8,23.31052581]
[1751726298391,1e-08,2522.9,2522.8,23.86052581]
[1751726300725,1e-08,2522.9,2522.8,24.64912581]
[1751726301224,1e-08,2522.9,2522.8,16.65212581]
[1751726301417,1e-08,2522.9,2522.8,26.58712581]
[1751726305130,1e-08,2522.9,2522.8,7.83455957]
[1751726305432,1e-08,2522.9,2522.8,17.77355957]
[1751726307029,1e-08,2522.9,2522.8,16.43595957]
[1751726308730,1e-08,2522.9,2522.8,25.80352581]
[1751726310542,1e-08,2522.9,2522.8,15.86352581]
[1751726310746,1e-08,2522.9,2522.8,25.80152581]
[1751726314141,1e-08,2522.9,2522.8,16.99795957]
[1751726314445,1e-08,2522.9,2522.8,16.99695957]
[1751726316618,1e-08,2522.9,2522.8,16.99495957]
[1751726316819,1e-08,2522.9,2522.8,7.04595957]
[1751726317152,1e-08,2522.9,2522.8,17.03359806]
[1751726317349,1e-08,2522.9,2522.8,16.99395957]
[1751726317718,1e-08,2522.9,2522.8,16.44395957]
[1751726319325,1e-08,2522.9,2522.8,6.49595957]
[1751726319526,1e-08,2522.9,2522.8,16.44295957]
[1751726323830,1e-08,2522.9,2522.8,16.44095957]
[1751726324031,1e-08,2522.9,2522.8,6.49595957]
[1751726324271,1e-08,2522.9,2522.8,14.10544969]
[1751726326782,1e-08,2522.9,2522.8,4.16144969]
[1751726326983,1e-08,2522.9,2522.8,14.10444969]
[1751726328987,1e-08,2522.9,2522.8,4.16144969]
[1751726329303,1e-08,2522.9,2522.8,14.10444969]
[1751726329651,1e-08,2522.9,2522.8,4.16144969]
[1751726329846,1e-08,2522.9,2522.8,14.10444969]
[1751726330889,1e-08,2522.9,2522.2,0.827]
[1751726331098,0.6096,2522.8,2522.7,3.96400681]
[1751726331268,0.95905132,2522.8,2522.7,3.96400681]
[1751726331677,0.95905132,2522.8,2522.7,11.96200681]
[1751726333099,0.95905132,2522.8,2522.7,3.96400681]
[1751726333287,0.95905132,2522.8,2522.7,11.96200681]
[1751726333487,0.98081299,2522.8,2522.7,11.96200681]
[1751726336598,0.98081299,2522.8,2522.7,3.96400681]
[1751726336827,0.98081299,2522.8,2522.7,11.96200681]
[1751726337007,0.98081299,2522.8,2522.7,7.998]
[1751726337177,0.98081299,2522.8,2522.6,3.96408775]
[1751726337383,0.6096,2522.6,2522.3,3.96455505]
[1751726337590,0.8072,2522.6,2522.4,7.998]
[1751726337913,0.03964966,2522.5,2522.2,3.96474625]
[1751726338121,0.41060354,2522.5,2522.3,8.001]
[1751726338274,0.03964966,2522.5,2522.2,3.96474625]
[1751726338475,0.6096,2522.4,2522.3,8.001]
[1751726338711,0.6096,2522.4,2522.3,11.96563545]
[1751726338911,0.6096,2522.4,2522.3,8.001]
[1751726339713,0.6096,2522.4,2522.3,11.96563545]
[1751726339889,0.6096,2522.4,2522.2,3.96471445]
[1751726340417,0.6096,2522.4,2522.3,8.0]
[1751726340781,0.6096,2522.4,2522.3,11.96463545]
[1751726342613,0.6096,2522.4,2522.3,8.0]
[1751726342978,0.6096,2522.4,2522.2,3.96470542]
[1751726343185,0.6096,2522.4,2522.3,7.999]
[1751726343487,0.98003554,2522.4,2522.3,7.999]
[1751726344788,0.98003554,2522.4,2522.3,11.96363545]
[1751726345021,1.01396792,2522.6,2522.4,3.96440216]
[1751726345315,1.01396792,2522.6,2522.5,7.998]
[1751726345517,1.42388976,2522.6,2522.5,7.998]
[1751726346385,1.3842401,2522.6,2522.5,7.998]
[1751726348917,1.38420415,2522.6,2522.5,7.998]
[1751726353420,1.92297524,2522.6,2522.5,7.998]
[1751726354021,1.92297524,2522.6,2522.1,0.1976]
[1751726354022,3.96456579,2522.4,2522.1,0.1976]
[1751726354334,0.6096,2522.5,2521.8,7.998]
[1751726354335,10.6096,2522.2,2521.8,7.998]
[1751726354621,12.39395434,2522.1,2521.8,7.998]
[1751726354925,0.37057354,2522.0,2521.8,7.998]
[1751726355298,0.37057354,2522.0,2521.4,0.81829319]
[1751726355299,0.03964966,2521.9,2521.4,0.81829319]
[1751726355492,0.03964966,2521.9,2521.5,7.998]
[1751726355890,0.03964966,2521.9,2521.6,3.96573341]
[1751726356094,0.03964966,2521.9,2521.7,7.998]
[1751726358235,0.03964966,2521.9,2521.7,11.96357329]
[1751726358900,0.03964966,2521.9,2521.8,3.96542152]
[1751726359093,0.64924966,2522.2,2521.9,3.96526428]
[1751726359360,0.37045585,2522.1,2522.0,3.96510705]
[1751726359715,0.37045585,2522.1,2521.9,11.96317686]
[1751726361144,0.37045585,2522.0,2521.9,11.96317686]
[1751726361323,0.37045585,2522.1,2521.9,11.96317686]
[1751726361643,0.37045585,2522.0,2521.9,11.96317686]
[1751726362523,0.37045585,2522.1,2521.9,11.96317686]
[1751726362729,0.37045585,2522.0,2521.9,11.96317686]
[1751726363045,0.37045585,2522.1,2521.9,11.96317686]
[1751726363271,0.37045585,2522.0,2521.9,11.96317686]
[1751726363470,0.6096,2522.2,2521.9,7.998]
[1751726363471,0.37045585,2522.1,2521.9,7.998]
[1751726363761,0.37045585,2522.0,2521.9,7.998]
[1751726364372,0.37045585,2522.0,2521.9,11.96326428]
[1751726365468,0.37045585,2522.0,2521.9,7.998]
[1751726366171,0.37045585,2522.0,2521.7,4.1631278]
[1751726366374,0.37045585,2521.9,2521.8,11.96242152]
[1751726366944,0.37045585,2521.9,2521.8,7.997]
[1751726367749,0.37045585,2521.9,2521.8,11.96242152]
[1751726369075,0.1976,2522.0,2521.9,3.96526428]
[1751726369277,0.56858564,2522.0,2521.9,3.96526428]
[1751726370565,0.56858564,2522.0,2521.8,11.96233086]
[1751726370776,0.37098564,2521.9,2521.8,11.96233086]
[1751726371088,0.37098564,2521.9,2521.8,7.996]
[1751726373081,0.37098564,2521.9,2521.8,11.96142152]
[1751726377272,0.37098564,2521.9,2521.8,7.996]
[1751726378280,0.37098564,2521.9,2521.8,3.96542152]
[1751726378486,0.37098564,2521.9,2521.8,11.95842152]
[1751726378661,0.37098564,2521.9,2521.7,3.96545048]
[1751726378851,0.37098564,2521.8,2521.7,3.96545048]
[1751726379052,0.37098564,2521.8,2521.7,11.95745048]
[1751726379556,0.37098564,2521.8,2521.7,3.96545048]
[1751726380461,0.37098564,2521.8,2521.7,11.95745048]
[1751726381578,0.37098564,2521.8,2521.7,3.96545048]
[1751726381784,0.37098564,2521.8,2521.7,11.95745048]
[1751726381785,0.37148102,2521.8,2521.7,11.95745048]
[1751726386789,0.23724966,2522.0,2521.8,3.96540916]
[1751726387167,0.23724966,2522.0,2521.8,11.95640916]
[1751726387168,0.37197263,2521.9,2521.8,11.95640916]
[1751726394402,0.23724966,2522.0,2521.8,11.95640916]
[1751726394599,0.3720782,2521.9,2521.8,7.991]
[1751726395809,0.37208283,2521.9,2521.8,7.991]
[1751726396306,0.37208283,2521.9,2521.8,11.95642152]
[1751726396706,0.37208283,2521.9,2521.8,7.991]
[1751726397700,0.37208283,2521.9,2521.8,11.95642152]
[1751726397901,0.37208283,2521.9,2521.8,7.991]
[1751726398718,0.37210243,2521.9,2521.8,7.991]
[1751726402324,0.37210243,2521.9,2521.8,11.95642152]
[1751726404095,0.37210243,2521.9,2521.8,7.991]
[1751726404997,0.37210243,2521.9,2521.7,3.9654908]
[1751726405322,0.1976,2522.0,2521.8,7.99]
[1751726405484,0.37215738,2521.9,2521.8,7.99]
[1751726406580,0.37215738,2521.9,2521.8,11.95542152]
[1751726406815,0.37215738,2521.9,2521.8,7.99]
[1751726407385,0.37215738,2521.9,2521.8,11.95542152]
[1751726408121,0.37215738,2521.9,2521.8,7.99]
[1751726408726,0.37215738,2521.9,2521.8,11.95542152]
[1751726409816,0.37215738,2521.9,2521.8,7.99]
[1751726413289,0.37215738,2521.9,2521.5,0.1976]
[1751726413290,0.98175738,2521.9,2521.5,0.1976]
[1751726413536,0.41180704,2521.8,2521.6,7.99]
[1751726413834,0.37215738,2521.7,2521.6,7.99]
[1751726415834,0.37215738,2521.7,2521.4,6.14796782]
[1751726415835,0.91127652,2521.7,2521.4,0.04339319]
[1751726415999,0.37215738,2521.6,2521.4,0.04339319]
[1751726416327,0.73671914,2521.7,2521.5,7.99]
[1751726416538,0.37189223,2521.6,2521.5,7.99]
[1751726417628,0.92292726,2521.6,2521.4,0.04339319]
[1751726417835,0.56949223,2521.5,2521.4,8.03339319]
[1751726418416,0.56938023,2521.5,2521.4,8.03339319]
[1751726418642,0.56938023,2521.5,2521.4,12.75894379]
[1751726418839,0.37178023,2521.5,2521.4,12.75894379]
[1751726419007,0.37178023,2521.5,2521.4,14.45121622]
[1751726419208,0.37178023,2521.5,2521.4,14.64881622]
[1751726421821,0.37178023,2521.5,2521.4,14.64981622]
[1751726424935,0.20685012,2521.9,2521.8,3.96542152]
[1751726425123,0.57844814,2521.9,2521.8,11.95542152]
[1751726426852,0.57844814,2521.9,2521.8,7.99]
[1751726427214,0.20685012,2521.9,2521.8,7.99]
[1751726427644,1.25735932,2521.9,2521.6,4.16326933]
[1751726427848,1.25735932,2521.9,2521.7,7.99]
[1751726428054,1.29700898,2521.9,2521.8,7.99]
[1751726429350,1.25735932,2521.9,2521.8,7.99]
[1751726429739,1.25735932,2521.9,2521.7,7.99]
[1751726431646,1.25735932,2521.9,2521.7,11.9555522]
[1751726431818,0.37168031,2521.8,2521.7,11.9555522]
[1751726432235,0.37168031,2521.8,2521.7,7.99]
[1751726433057,0.37168031,2521.8,2521.6,3.96573435]
[1751726433230,0.20685012,2521.9,2521.7,7.99]
[1751726433432,0.37170839,2521.8,2521.5,3.96581819]
[1751726433646,0.56930839,2521.7,2521.4,0.04439319]
[1751726433844,0.64924966,2521.8,2521.4,8.03439319]
[1751726433845,0.41135805,2521.6,2521.4,8.03439319]
[1751726434021,0.37170839,2521.5,2521.4,0.04439319]
[1751726436546,0.44410776,2521.6,2521.4,0.04439319]
[1751726436774,0.37170751,2521.5,2521.4,0.04439319]
[1751726438238,0.37170751,2521.5,2521.4,4.01044379]
[1751726439525,0.37170751,2521.5,2521.4,4.77314379]
[1751726439862,0.37170751,2521.5,2521.4,6.87733662]
[1751726440440,0.37170751,2521.5,2521.4,6.83767612]
[1751726440657,0.37170751,2521.5,2521.4,6.87733662]
[1751726441063,0.37170751,2521.5,2521.4,6.83767612]
[1751726442425,0.1976,2521.9,2521.8,3.96542152]
[1751726442625,0.1976,2521.9,2521.8,11.95542152]
[1751726442626,0.56929659,2521.9,2521.8,11.95542152]
[1751726445363,0.56930483,2521.9,2521.8,11.95542152]
[1751726448371,0.56931862,2521.9,2521.8,11.95542152]
[1751726449952,0.56931862,2521.9,2521.8,7.99]
[1751726450463,0.56931862,2521.9,2521.8,11.95542152]
[1751726453391,10.0,2521.8,2521.4,0.04439319]
[1751726453599,2.39522173,2521.7,2521.4,0.04439319]